fUST/lending_fUST_20260505
["ID","MTS","AMOUNT","RATE_DAILY","PERIOD"]
[421617579,1777973440000,-500.0,0.00012328,2]
[421617567,1777973440000,-500.0,0.00012328,2]
[421617616,1777973440000,-861.44,0.00012328,2]
[421617668,1777973440000,-1651.51,0.00012328,2]
[421617618,1777973440000,-500.0,0.00012328,2]
[421617654,1777973440000,-500.0,0.00012328,2]
[421617651,1777973440000,-3814.95,0.00012328,2]
[421617658,1777973440000,-500.0,0.00012328,2]
[421617661,1777973440000,-500.0,0.00012328,2]
[421617655,1777973440000,-794.26,0.00012328,2]
[421617659,1777973440000,-562.75,0.00012328,2]
[421617656,1777973440000,-500.0,0.00012328,2]
[421617672,1777973440000,-1052.44,0.00012328,2]
[421617664,1777973440000,-500.0,0.00012328,2]
[421617662,1777973440000,-500.0,0.00012328,2]
[421617663,1777973440000,-500.0,0.00012328,2]
[421617671,1777973440000,-1118.85,0.00012328,2]
[421617665,1777973440000,-500.0,0.00012328,2]
[421617667,1777973440000,-500.20909629,0.00012328,2]
[421617666,1777973440000,-1732.58,0.00012328,2]
[421617681,1777973440000,-500.0,0.00012328,2]
[421617670,1777973440000,-929.6,0.00012328,2]
[421617669,1777973440000,-500.0,0.00012328,2]
[421617674,1777973440000,-555.54,0.00012328,2]
[421617675,1777973440000,-1915.52,0.00012328,2]
[421617673,1777973440000,-926.65,0.00012328,2]
[421617676,1777973440000,-500.0,0.00012328,2]
[421617679,1777973440000,-500.0,0.00012328,2]
[421617680,1777973440000,-500.0,0.00012328,2]
[421617677,1777973440000,-634.84,0.00012328,2]
[421617678,1777973440000,-500.0,0.00012328,2]
[421617615,1777973440000,-500.0,0.00012328,2]
[421617653,1777973440000,-553.87877266,0.00012328,2]
[421617657,1777973440000,-500.0,0.00012328,2]
[421617650,1777973440000,-671.67,0.00012328,2]
[421617649,1777973440000,-500.0,0.00012328,2]
[421617619,1777973440000,-500.0,0.00012328,2]
[421617617,1777973440000,-500.0,0.00012328,2]
[421617622,1777973440000,-500.0,0.00012328,2]
[421617625,1777973440000,-2119.11,0.00012328,2]
[421617621,1777973440000,-500.0,0.00012328,2]
[421617624,1777973440000,-500.0,0.00012328,2]
[421617623,1777973440000,-502.46437991,0.00012328,2]
[421617627,1777973440000,-500.0,0.00012328,2]
[421617632,1777973440000,-746.7,0.00012328,2]
[421617648,1777973440000,-500.0,0.00012328,2]
[421617626,1777973440000,-2579.3,0.00012328,2]
[421617630,1777973440000,-648.31,0.00012328,2]
[421617628,1777973440000,-554.86,0.00012328,2]
[421617629,1777973440000,-783.9,0.00012328,2]
[421617633,1777973440000,-594.2,0.00012328,2]
[421617634,1777973440000,-500.0,0.00012328,2]
[421617642,1777973440000,-500.0,0.00012328,2]
[421617631,1777973440000,-1886.41,0.00012328,2]
[421617645,1777973440000,-500.0,0.00012328,2]
[421617641,1777973440000,-500.0,0.00012328,2]
[421617646,1777973440000,-500.0,0.00012328,2]
[421617643,1777973440000,-4011.84,0.00012328,2]
[421617647,1777973440000,-1072.59,0.00012328,2]
[421617640,1777973440000,-500.0,0.00012328,2]
[421617637,1777973440000,-500.0,0.00012328,2]
[421617635,1777973440000,-595.52,0.00012328,2]
[421617638,1777973440000,-500.0,0.00012328,2]
[421617636,1777973440000,-500.0,0.00012328,2]
[421617644,1777973440000,-549.23,0.00012328,2]
[421617695,1777973441000,-500.0,0.00012328,2]
[421617693,1777973441000,-1578.73142979,0.00012328,2]
[421617690,1777973441000,-505.68,0.00012328,2]
[421617691,1777973441000,-500.0,0.00012328,2]
[421617689,1777973441000,-591.53369919,0.00012328,2]
[421617682,1777973441000,-489.28416899,0.00012328,2]
[421617685,1777973441000,-477.09223739,0.00012328,2]
[421617683,1777973441000,-10.71583101,0.00012328,2]
[421617684,1777973441000,-502.91896782,0.00012328,2]
[421617694,1777973441000,-551.11,0.00012328,2]
[421617687,1777973441000,-22.90776261,0.00012328,2]
[421617692,1777973441000,-52.42857021,0.00012328,2]
[421617688,1777973441000,-318.53630081,0.00012328,2]
[421617696,1777973441000,-500.0,0.00012328,2]
[421617697,1777973441000,-1318.72,0.00012328,2]
[421617708,1777973441000,-222.17598457,0.00012328,2]
[421617706,1777973441000,-500.0,0.00012328,2]
[421617705,1777973441000,-500.0,0.00012328,2]
[421617702,1777973441000,-602.96,0.00012328,2]
[421617704,1777973441000,-168.70149289,0.00012328,2]
[421617703,1777973441000,-331.29850711,0.00012328,2]
[421617701,1777973441000,-500.0,0.00012328,2]
[421617700,1777973441000,-499.0,0.00012328,2]
[421617699,1777973441000,-500.0,0.00012328,2]
[421617698,1777973441000,-576.09231449,0.00012328,2]
[421617707,1777973441000,-852.21,0.00012328,2]
[421617733,1777973454000,-3830.93,0.00012328,2]
[421617738,1777973454000,-500.0,0.00012328,2]
[421617735,1777973454000,-500.0,0.00012328,2]
[421617732,1777973454000,-600.38401543,0.00012328,2]
[421617727,1777973454000,-152.0,0.00010716,2]
[421617736,1777973454000,-2301.7,0.00012328,2]
[421617728,1777973454000,-4028.98212794,0.00012081,2]
[421617729,1777973454000,-500.0,0.00012327,2]
[421617730,1777973454000,-464.39884733,0.00012327,2]
[421617734,1777973454000,-512.93,0.00012328,2]
[421617731,1777973454000,-500.0,0.00012327,2]
[421617737,1777973454000,-500.0,0.00012328,2]
[421617740,1777973454000,-611.31,0.00012328,2]
[421617741,1777973454000,-500.0,0.00012328,2]
[421617752,1777973454000,-463.74134478,0.00012328,2]
[421617751,1777973454000,-500.0,0.00012328,2]
[421617743,1777973454000,-248.35666822,0.00012328,2]
[421617750,1777973454000,-500.0,0.00012328,2]
[421617748,1777973454000,-454.96465952,0.00012328,2]
[421617749,1777973454000,-23.93847226,0.00012328,2]
[421617746,1777973454000,-500.0,0.00012328,2]
[421617745,1777973454000,-500.0,0.00012328,2]
[421617744,1777973454000,-483.25333178,0.00012328,2]
[421617742,1777973454000,-621.36,0.00012328,2]
[421617739,1777973454000,-2250.78,0.00012328,2]
[421617747,1777973454000,-21.09686822,0.00012328,2]
[421617754,1777973455000,-309.3907597,0.00012328,2]
[421617753,1777973455000,-36.25865522,0.00012328,2]
[421617755,1777973455000,-500.0,0.00012328,2]
[421617756,1777973455000,-500.0,0.00012328,2]
[421617757,1777973455000,-500.0,0.00012328,2]
[421617758,1777973455000,-500.0,0.00012328,2]
[421617764,1777973455000,-354.52789596,0.00012328,2]
[421617759,1777973455000,-299.82268912,0.00012328,2]
[421617762,1777973455000,-500.0,0.00012328,2]
[421617765,1777973455000,-3471.74210404,0.00012328,2]
[421617763,1777973455000,-500.0,0.00012328,2]
[421617761,1777973455000,-500.0,0.00012328,2]
[421617766,1777973455000,-560.75789596,0.00012328,2]
[421617760,1777973455000,-500.0,0.00012328,2]
[421617770,1777973462000,5830.62478607,7.6e-05,2]
[421617827,1777974632000,-151.0,8.438e-05,2]
[421617825,1777974632000,-2466.95269902,8.354e-05,2]
[421617829,1777974632000,-888.34205459,8.438e-05,2]
[421617884,1777974638000,-152.0,8.323e-05,2]
[421617885,1777974638000,-2132.22797373,8.438e-05,2]
[421617892,1777974639000,-300.0,8.782e-05,2]
[421617893,1777974639000,-1065.46560578,9.42e-05,2]
[421617889,1777974639000,-300.0,8.782e-05,2]
[421617891,1777974639000,-300.0,8.782e-05,2]
[421617887,1777974639000,-540.0,8.523e-05,2]
[421617886,1777974639000,-1200.0,8.522e-05,2]
[421617888,1777974639000,-376.28572989,8.566e-05,2]
[421617890,1777974639000,-300.0,8.782e-05,2]
[421617903,1777974641000,-452.28667416,9.42e-05,2]
[421617904,1777974641000,-5787.99555498,9.42e-05,2]
[421617902,1777974641000,-359.50100004,9.42e-05,2]
[421617952,1777974647000,-258.85024044,9.42e-05,2]
[421617966,1777974647000,-300.0,9.612e-05,2]
[421617967,1777974647000,-300.0,9.612e-05,2]
[421617968,1777974647000,-300.0,9.612e-05,2]
[421617965,1777974647000,-300.0,9.612e-05,2]
[421617963,1777974647000,-300.0,9.612e-05,2]
[421617961,1777974647000,-300.0,9.612e-05,2]
[421617957,1777974647000,-300.0,9.612e-05,2]
[421617969,1777974647000,-600.0,9.612e-05,2]
[421617960,1777974647000,-300.0,9.612e-05,2]
[421617959,1777974647000,-300.0,9.612e-05,2]
[421617962,1777974647000,-300.0,9.612e-05,2]
[421617955,1777974647000,-300.0,9.612e-05,2]
[421617953,1777974647000,-35350.51435546,9.425e-05,2]
[421617964,1777974647000,-300.0,9.612e-05,2]
[421617954,1777974647000,-300.0,9.612e-05,2]
[421617956,1777974647000,-300.0,9.612e-05,2]
[421617970,1777974647000,-303.0,9.66e-05,2]
[421617958,1777974647000,-300.0,9.612e-05,2]
[421617977,1777974647000,-583.0,0.00010626,2]
[421617989,1777974647000,-3648.21540158,0.00012,2]
[421617988,1777974647000,-268.921,0.00011952,2]
[421617981,1777974647000,-456.2418086,0.00011632,2]
[421617987,1777974647000,-1082.86359842,0.0001191,2]
[421617980,1777974647000,-325.5513661,0.00011632,2]
[421617984,1777974647000,-161.56332863,0.00011748,2]
[421617978,1777974647000,-2579.74768986,0.00011623,2]
[421617986,1777974647000,-8587.68301979,0.0001191,2]
[421617982,1777974647000,-160.0,0.00011748,2]
[421617985,1777974647000,-160.0,0.00011748,2]
[421617979,1777974647000,-864.0,0.00011631,2]
[421617971,1777974647000,-420.0,9.66e-05,2]
[421617973,1777974647000,-229.83432848,9.855e-05,2]
[421617975,1777974647000,-444.01716127,0.00010566,2]
[421617976,1777974647000,-720.0,0.00010574,2]
[421617974,1777974647000,-6433.66766497,0.0001,2]
[421617983,1777974647000,-160.0,0.00011748,2]
[421617972,1777974647000,-300.0,9.66e-05,2]
[421618008,1777975162000,612.59,0.0002082,120]
[421618009,1777975235000,-5000.0,8.884e-05,2]
[421618010,1777975253000,-2062.18594567,8.884e-05,2]
[421618011,1777975277000,-2937.81405433,8.884e-05,2]
[421618014,1777975300000,-544.0,8.884e-05,2]
[421618018,1777975318000,-300.0,8.973e-05,2]
[421618019,1777975336000,-300.0,8.974e-05,2]
[421618020,1777975353000,-300.0,8.974e-05,2]
[421618021,1777975371000,-500.0,8.974e-05,2]
[421618022,1777975378000,17513.39040107,0.0002,120]
[421618096,1777975833000,-605.52935036,9.626e-05,2]
[421618079,1777975833000,-121.05327839,9.626e-05,2]
[421618077,1777975833000,-300.0,9.626e-05,2]
[421618075,1777975833000,-376.7195583,9.255e-05,2]
[421618073,1777975833000,-178.4786866,8.707e-05,2]
[421618131,1777975838000,-2356.7456291,9.944e-05,2]
[421618141,1777975838000,-161.56332863,0.00011746,2]
[421618144,1777975838000,-442.0,0.00011816,2]
[421618134,1777975838000,-2229.5213988,0.00010002,2]
[421618142,1777975838000,-160.0,0.00011746,2]
[421618139,1777975838000,-160.0,0.00011746,2]
[421618140,1777975838000,-160.0,0.00011746,2]
[421618135,1777975838000,-420.0,0.00010589,2]
[421618136,1777975838000,-720.0,0.000108,2]
[421618138,1777975838000,-176.0,0.00011647,2]
[421618143,1777975838000,-2214.0,0.00011807,2]
[421618137,1777975838000,-444.5290788,0.00011255,2]
[421618146,1777975838000,-864.0,0.0001188,2]
[421618148,1777975838000,-26831.78624406,0.000119,2]
[421618156,1777975838000,-2685.98808529,0.00012081,2]
[421618145,1777975838000,-185.0,0.00011816,2]
[421618132,1777975838000,-1143.20701261,0.0001,2]
[421618114,1777975838000,-300.0,9.627e-05,2]
[421618129,1777975838000,-37496.90028988,9.627e-05,2]
[421618112,1777975838000,-473.41737125,9.626e-05,2]
[421618113,1777975838000,-300.0,9.627e-05,2]
[421618155,1777975838000,-177.11356235,0.00012034,2]
[421618116,1777975838000,-300.0,9.627e-05,2]
[421618115,1777975838000,-300.0,9.627e-05,2]
[421618117,1777975838000,-300.0,9.627e-05,2]
[421618118,1777975838000,-300.0,9.627e-05,2]
[421618120,1777975838000,-186.49327303,9.627e-05,2]
[421618121,1777975838000,-300.0,9.627e-05,2]
[421618119,1777975838000,-113.50672697,9.627e-05,2]
[421618122,1777975838000,-300.0,9.627e-05,2]
[421618123,1777975838000,-300.0,9.627e-05,2]
[421618124,1777975838000,-300.0,9.627e-05,2]
[421618125,1777975838000,-300.0,9.627e-05,2]
[421618126,1777975838000,-300.0,9.627e-05,2]
[421618127,1777975838000,-300.0,9.627e-05,2]
[421618128,1777975838000,-300.0,9.627e-05,2]
[421618130,1777975838000,-600.0,9.819e-05,2]
[421618158,1777975838000,-177.11356231,0.00012131,2]
[421618133,1777975838000,-212.0305998,0.00010002,2]
[421618157,1777975838000,-177.11356231,0.00012083,2]
[421618171,1777975838000,-500.5286797,0.00012328,2]
[421618181,1777975838000,-500.0,0.00012328,2]
[421618174,1777975838000,-500.0,0.00012328,2]
[421618182,1777975838000,-500.38390441,0.00012328,2]
[421618173,1777975838000,-586.72812311,0.00012328,2]
[421618175,1777975838000,-500.0,0.00012328,2]
[421618176,1777975838000,-500.25790272,0.00012328,2]
[421618178,1777975838000,-500.0,0.00012328,2]
[421618177,1777975838000,-500.0,0.00012328,2]
[421618183,1777975838000,-500.83850761,0.00012328,2]
[421618189,1777975838000,-18.9831704,0.00012328,2]
[421618186,1777975838000,-500.0,0.00012328,2]
[421618185,1777975838000,-1293.47,0.00012328,2]
[421618187,1777975838000,-500.0,0.00012328,2]
[421618188,1777975838000,-500.0,0.00012328,2]
[421618150,1777975838000,-6358.39634001,0.00012,2]
[421618184,1777975838000,-246.27876769,0.00012328,2]
[421618179,1777975838000,-500.0,0.00012328,2]
[421618180,1777975838000,-500.0,0.00012328,2]
[421618161,1777975838000,-501.4383974,0.00012153,2]
[421618152,1777975838000,-265.54528762,0.00012,2]
[421618172,1777975838000,-500.64346586,0.00012328,2]
[421618154,1777975838000,-194.36249117,0.00012007,2]
[421618153,1777975838000,-293.80098236,0.00012,2]
[421618149,1777975838000,-215.137,0.00011945,2]
[421618151,1777975838000,-183.24016253,0.00012,2]
[421618160,1777975838000,-238.515312,0.00012139,2]
[421618159,1777975838000,-155.0,0.00012136,2]
[421618170,1777975838000,-500.0,0.00012328,2]
[421618147,1777975838000,-1188.75699227,0.000119,2]
[421618162,1777975838000,-177.11356231,0.0001218,2]
[421618166,1777975838000,-5053.00530539,0.00012307,2]
[421618168,1777975838000,-500.0,0.00012328,2]
[421618164,1777975838000,-800.0,0.000123,2]
[421618165,1777975838000,-800.0,0.000123,3]
[421618167,1777975838000,-500.0,0.00012326,2]
[421618163,1777975838000,-177.11356231,0.00012228,2]
[421618169,1777975838000,-500.0,0.00012328,2]
[421618255,1777975843000,-500.0,0.00012328,2]
[421618248,1777975843000,-500.0,0.00012328,2]
[421618242,1777975843000,-500.0,0.00012328,2]
[421618250,1777975843000,-193.07991554,0.00012328,2]
[421618261,1777975843000,-477.99117931,0.00012328,2]
[421618246,1777975843000,-642.20907145,0.00012328,2]
[421618253,1777975843000,-306.92008446,0.00012328,2]
[421618226,1777975843000,-401.09153904,0.00012081,2]
[421618229,1777975843000,-1389.56718449,0.00012081,2]
[421618240,1777975843000,-500.0,0.00012328,2]
[421618235,1777975843000,-587.27375959,0.00012328,2]
[421618233,1777975843000,-500.21714654,0.00012328,2]
[421618238,1777975843000,-500.95992753,0.00012328,2]
[421618231,1777975843000,-602.8768296,0.00012328,2]
[421618257,1777975843000,-500.0,0.00012328,2]
[421618244,1777975843000,-6.17092855,0.00012328,2]
[421618259,1777975843000,-897.84,0.00012328,2]
[421618275,1777975843000,-500.0,0.00012328,2]
[421618273,1777975843000,-587.38,0.00012328,2]
[421618271,1777975843000,-22.00882069,0.00012328,2]
[421618291,1777975843000,-500.0,0.00012328,2]
[421618289,1777975843000,-539.43,0.00012328,2]
[421618283,1777975843000,-500.0,0.00012328,2]
[421618301,1777975843000,-500.0,0.00012328,2]
[421618303,1777975843000,-904.95062991,0.00012328,2]
[421618287,1777975843000,-1508.04,0.00012328,2]
[421618318,1777975843000,-302.62139999,0.00012328,2]
[421618285,1777975843000,-500.0,0.00012328,2]
[421618299,1777975843000,-500.0,0.00012328,2]
[421618295,1777975843000,-500.0,0.00012328,2]
[421618294,1777975843000,-500.0,0.00012328,2]
[421618278,1777975843000,-550.85,0.00012328,2]
[421618281,1777975843000,-500.0,0.00012328,2]
[421618297,1777975843000,-500.0,0.00012328,2]
[421618279,1777975843000,-500.0,0.00012328,2]
[421618415,1777975846000,-2030.81,0.00012328,2]
[421618420,1777975846000,-500.0,0.00012328,2]
[421618418,1777975846000,-500.0,0.00012328,2]
[421618424,1777975846000,-44.48444539,0.00012328,2]
[421618419,1777975846000,-500.0,0.00012328,2]
[421618421,1777975846000,-469.99685225,0.00012328,2]
[421618423,1777975846000,-751.24,0.00012328,2]
[421618422,1777975846000,-539.3,0.00012328,2]
[421618428,1777975846000,-500.0,0.00012328,2]
[421618429,1777975846000,-536.56,0.00012328,2]
[421618430,1777975846000,-500.0,0.00012328,2]
[421618426,1777975846000,-872.15,0.00012328,2]
[421618417,1777975846000,-500.0,0.00012328,2]
[421618425,1777975846000,-455.51555461,0.00012328,2]
[421618416,1777975846000,-500.0,0.00012328,2]
[421618412,1777975846000,-500.0,0.00012328,2]
[421618411,1777975846000,-500.0,0.00012328,2]
[421618400,1777975846000,-117.4079701,0.00012328,2]
[421618399,1777975846000,-1193.77248236,0.00012081,2]
[421618401,1777975846000,-623.76,0.00012328,2]
[421618403,1777975846000,-544.68791605,0.00012328,2]
[421618404,1777975846000,-718.05,0.00012328,2]
[421618413,1777975846000,-500.0,0.00012328,2]
[421618414,1777975846000,-500.0,0.00012328,2]
[421618402,1777975846000,-500.0,0.00012328,2]
[421618405,1777975846000,-909.3,0.00012328,2]
[421618409,1777975846000,-500.0,0.00012328,2]
[421618406,1777975846000,-848.43,0.00012328,2]
[421618431,1777975846000,-1835.7,0.00012328,2]
[421618408,1777975846000,-851.31,0.00012328,2]
[421618410,1777975846000,-1390.94,0.00012328,2]
[421618407,1777975846000,-668.78,0.00012328,2]
[421618438,1777975846000,-1263.77,0.00012328,2]
[421618454,1777975846000,-2205.8,0.00012328,2]
[421618432,1777975846000,-500.0,0.00012328,2]
[421618463,1777975846000,-6002.17,0.00012328,2]
[421618453,1777975846000,-584.34,0.00012328,2]
[421618465,1777975846000,-500.0,0.00012328,2]
[421618452,1777975846000,-816.7,0.00012328,2]
[421618456,1777975846000,-701.13,0.00012328,2]
[421618464,1777975846000,-500.0,0.00012328,2]
[421618446,1777975846000,-3671.3,0.00012328,2]
[421618455,1777975846000,-500.0,0.00012328,2]
[421618462,1777975846000,-556.7,0.00012328,2]
[421618459,1777975846000,-500.0,0.00012328,2]
[421618460,1777975846000,-3666.84,0.00012328,2]
[421618458,1777975846000,-500.0,0.00012328,2]
[421618466,1777975846000,-580.85,0.00012328,2]
[421618437,1777975846000,-500.0,0.00012328,2]
[421618457,1777975846000,-500.0,0.00012328,2]
[421618448,1777975846000,-585.84,0.00012328,2]
[421618461,1777975846000,-500.0,0.00012328,2]
[421618445,1777975846000,-890.87,0.00012328,2]
[421618447,1777975846000,-528.15,0.00012328,2]
[421618433,1777975846000,-1563.19,0.00012328,2]
[421618436,1777975846000,-268.94948883,0.00012328,2]
[421618434,1777975846000,-1807.03558162,0.00012328,2]
[421618435,1777975846000,-1848.96441838,0.00012328,2]
[421618442,1777975846000,-751.96,0.00012328,2]
[421618441,1777975846000,-500.0,0.00012328,2]
[421618427,1777975846000,-1072.24,0.00012328,2]
[421618440,1777975846000,-500.0,0.00012328,2]
[421618450,1777975846000,-500.0,0.00012328,2]
[421618451,1777975846000,-1825.75,0.00012328,2]
[421618444,1777975846000,-500.0,0.00012328,2]
[421618443,1777975846000,-500.0,0.00012328,2]
[421618439,1777975846000,-500.0,0.00012328,2]
[421618449,1777975846000,-500.0,0.00012328,2]
[421618503,1777975847000,-417.72774908,0.00012328,2]
[421618502,1777975847000,-500.0,0.00012328,2]
[421618500,1777975847000,-500.0,0.00012328,2]
[421618499,1777975847000,-500.0,0.00012328,2]
[421618496,1777975847000,-2182.48435344,0.00012328,2]
[421618494,1777975847000,-500.0,0.00012328,2]
[421618497,1777975847000,-569.44,0.00012328,2]
[421618510,1777975847000,-872.39,0.00012328,2]
[421618495,1777975847000,-4678.56564656,0.00012328,2]
[421618498,1777975847000,-500.0,0.00012328,2]
[421618501,1777975847000,-500.0,0.00012328,2]
[421618522,1777975847000,-500.0,0.00012328,2]
[421618506,1777975847000,-1807.81,0.00012328,2]
[421618505,1777975847000,-500.0,0.00012328,2]
[421618504,1777975847000,-500.0,0.00012328,2]
[421618509,1777975847000,-500.0,0.00012328,2]
[421618508,1777975847000,-500.0,0.00012328,2]
[421618512,1777975847000,-531.75,0.00012328,2]
[421618523,1777975847000,-1008.59,0.00012328,2]
[421618511,1777975847000,-500.0,0.00012328,2]
[421618513,1777975847000,-500.0,0.00012328,2]
[421618492,1777975847000,-3228.29,0.00012328,2]
[421618507,1777975847000,-500.0,0.00012328,2]
[421618493,1777975847000,-500.0,0.00012328,2]
[421618475,1777975847000,-683.05,0.00012328,2]
[421618485,1777975847000,-680.7,0.00012328,2]
[421618467,1777975847000,-500.0,0.00012328,2]
[421618469,1777975847000,-500.0,0.00012328,2]
[421618471,1777975847000,-615.98,0.00012328,2]
[421618470,1777975847000,-500.0,0.00012328,2]
[421618468,1777975847000,-500.0,0.00012328,2]
[421618477,1777975847000,-500.0,0.00012328,2]
[421618472,1777975847000,-500.0,0.00012328,2]
[421618514,1777975847000,-1261.94,0.00012328,2]
[421618474,1777975847000,-1398.97,0.00012328,2]
[421618476,1777975847000,-500.0,0.00012328,2]
[421618487,1777975847000,-500.0,0.00012328,2]
[421618473,1777975847000,-1565.94,0.00012328,2]
[421618491,1777975847000,-500.0,0.00012328,2]
[421618478,1777975847000,-766.34,0.00012328,2]
[421618481,1777975847000,-500.0,0.00012328,2]
[421618490,1777975847000,-621.3,0.00012328,2]
[421618488,1777975847000,-500.0,0.00012328,2]
[421618482,1777975847000,-500.0,0.00012328,2]
[421618484,1777975847000,-4042.44,0.00012328,2]
[421618489,1777975847000,-500.0,0.00012328,2]
[421618483,1777975847000,-500.0,0.00012328,2]
[421618486,1777975847000,-659.6,0.00012328,2]
[421618479,1777975847000,-578.96,0.00012328,2]
[421618519,1777975847000,-500.0,0.00012328,2]
[421618480,1777975847000,-1390.39,0.00012328,2]
[421618517,1777975847000,-570.7,0.00012328,2]
[421618546,1777975847000,-3978.14,0.00012328,2]
[421618566,1777975847000,-5762.94,0.00012328,2]
[421618544,1777975847000,-500.0,0.00012328,2]
[421618549,1777975847000,-888.04,0.00012328,2]
[421618551,1777975847000,-500.0,0.00012328,2]
[421618553,1777975847000,-758.56,0.00012328,2]
[421618552,1777975847000,-500.0,0.00012328,2]
[421618550,1777975847000,-500.0,0.00012328,2]
[421618555,1777975847000,-813.76,0.00012328,2]
[421618556,1777975847000,-500.76649804,0.00012328,2]
[421618545,1777975847000,-2226.38,0.00012328,2]
[421618554,1777975847000,-1110.21,0.00012328,2]
[421618561,1777975847000,-500.0,0.00012328,2]
[421618560,1777975847000,-500.0,0.00012328,2]
[421618559,1777975847000,-500.0,0.00012328,2]
[421618558,1777975847000,-500.0,0.00012328,2]
[421618562,1777975847000,-2423.02,0.00012328,2]
[421618563,1777975847000,-500.0,0.00012328,2]
[421618565,1777975847000,-500.0,0.00012328,2]
[421618564,1777975847000,-500.0,0.00012328,2]
[421618567,1777975847000,-7196.05,0.00012328,2]
[421618515,1777975847000,-500.0,0.00012328,2]
[421618557,1777975847000,-3012.92,0.00012328,2]
[421618548,1777975847000,-500.0,0.00012328,2]
[421618568,1777975847000,-611.64636823,0.00012328,2]
[421618543,1777975847000,-500.0,0.00012328,2]
[421618547,1777975847000,-577.83,0.00012328,2]
[421618521,1777975847000,-10937.73,0.00012328,2]
[421618516,1777975847000,-761.17,0.00012328,2]
[421618520,1777975847000,-526.34,0.00012328,2]
[421618518,1777975847000,-1943.18,0.00012328,2]
[421618525,1777975847000,-500.0,0.00012328,2]
[421618527,1777975847000,-9357.55,0.00012328,2]
[421618536,1777975847000,-1102.33,0.00012328,2]
[421618537,1777975847000,-500.0,0.00012328,2]
[421618526,1777975847000,-4032.11,0.00012328,2]
[421618534,1777975847000,-1660.39,0.00012328,2]
[421618535,1777975847000,-3300.85,0.00012328,2]
[421618530,1777975847000,-500.0,0.00012328,2]
[421618532,1777975847000,-500.0,0.00012328,2]
[421618529,1777975847000,-500.0,0.00012328,2]
[421618531,1777975847000,-500.0,0.00012328,2]
[421618524,1777975847000,-643.69,0.00012328,2]
[421618540,1777975847000,-3035.03,0.00012328,2]
[421618533,1777975847000,-3333.89,0.00012328,2]
[421618539,1777975847000,-532.39,0.00012328,2]
[421618538,1777975847000,-648.55,0.00012328,2]
[421618542,1777975847000,-500.0,0.00012328,2]
[421618541,1777975847000,-500.0,0.00012328,2]
[421618528,1777975847000,-564.15,0.00012328,2]
[421618570,1777975848000,-2761.02474097,0.00012328,2]
[421618569,1777975848000,-3779.44363177,0.00012328,2]
[421618572,1777975848000,-3006.49,0.00012328,2]
[421618571,1777975848000,-775.96525903,0.00012328,2]
[421618573,1777975848000,-92.78293077,0.00012328,2]
[421618579,1777976820000,450.0,0.00020822,120]
[421618652,1777977032000,-173.79292292,9.002e-05,2]
[421618656,1777977032000,-3400.24238363,9.093e-05,2]
[421618663,1777977032000,-300.0,9.372e-05,2]
[421618666,1777977032000,-300.0,9.372e-05,2]
[421618669,1777977032000,-300.0,9.372e-05,2]
[421618660,1777977032000,-547.0,9.093e-05,2]
[421618677,1777977032000,-372.24603496,9.469e-05,2]
[421618675,1777977032000,-300.0,9.372e-05,2]
[421618680,1777977032000,-331.0,0.00010309,2]
[421618683,1777977032000,-1139.33088344,0.00010309,2]